bitfinex/quotes_ETHUSD_20250722
["timestamp","ask_amount","ask_price","bid_price","bid_amount"]
[1753214265983,0.355,3664.3,3663.8,2.72933894]
[1753214266182,0.7786,3664.8,3663.2,0.7592]
[1753214266376,2.72909686,3664.3,3663.5,2.72957101]
[1753214266574,0.8051,3664.2,3663.3,3.076]
[1753214266909,0.8051,3664.7,3664.3,2.72898576]
[1753214267067,0.8051,3664.7,3663.3,3.076]
[1753214267271,3.53384261,3664.7,3663.4,3.03730464]
[1753214267495,3.53384131,3664.7,3663.4,3.03730464]
[1753214267675,0.8051,3664.7,3663.4,0.3076]
[1753214267870,2.72901504,3664.4,3663.7,2.72946832]
[1753214268098,0.4585,3664.3,3663.6,2.72955562]
[1753214268302,0.4585,3664.3,3663.4,0.3076]
[1753214268471,2.72912496,3664.2,3663.5,2.72958222]
[1753214268671,0.4585,3664.1,3663.5,2.72962179]
[1753214268914,0.4585,3664.1,3663.4,2.72966889]
[1753214269074,0.7877,3664.0,3662.9,3.075]
[1753214269410,3.18789204,3663.9,3663.2,2.72983996]
[1753214269709,0.7877,3664.0,3663.6,2.72950009]
[1753214269710,0.4585,3663.8,3663.6,2.72950009]
[1753214269909,0.4585,3663.8,3663.5,2.72961891]
[1753214270110,0.4585,3663.8,3663.0,2.75724594]
[1753214270283,0.4585,3663.8,3663.7,2.72948112]
[1753214270483,0.7877,3664.0,3663.1,0.27572459]
[1753214270701,0.7877,3664.0,3663.6,2.72955]
[1753214271007,0.4585,3663.9,3663.5,2.72960681]
[1753214271213,0.4585,3663.9,3663.2,2.72985367]
[1753214271423,0.7877,3664.0,3663.9,2.72933213]
[1753214271578,1.2462,3664.0,3663.3,3.03031897]
[1753214271782,1.2462,3664.0,3663.5,2.72957498]
[1753214272087,0.4585,3663.9,3663.5,2.72957498]
[1753214272287,0.4585,3663.9,3663.6,2.72950686]
[1753214272600,0.4585,3663.9,3663.8,2.72940662]
[1753214272799,0.7907,3664.7,3664.2,2.72906009]
[1753214272998,0.7907,3664.7,3663.3,3.37555783]
[1753214272999,0.4585,3664.6,3663.3,3.37555783]
[1753214273200,2.7291475,3664.2,3663.5,2.72961181]
[1753214273522,0.4585,3664.1,3663.5,2.72961181]
[1753214273721,0.4585,3664.1,3663.6,2.72953782]
[1753214273878,0.4585,3664.1,3663.8,2.72936569]
[1753214274078,0.4585,3664.1,3663.6,2.7294988]
[1753214274288,0.4585,3664.1,3663.7,2.72947015]
[1753214274508,0.4585,3664.0,3663.7,2.72947015]
[1753214274696,0.4585,3664.0,3663.8,2.72940617]
[1753214275096,0.4585,3664.0,3663.5,2.72962738]
[1753214275097,0.4585,3664.0,3663.7,2.72946526]
[1753214275300,0.7907,3664.4,3663.3,3.075]
[1753214275495,1.2492,3664.4,3663.9,2.72930151]
[1753214275707,0.7907,3664.4,3663.9,2.72930151]
[1753214275912,0.4585,3664.3,3663.3,3.075]
[1753214276111,0.7907,3664.4,3664.3,2.72903419]
[1753214276276,0.7907,3664.4,3663.3,3.075]
[1753214276277,1.2492,3664.4,3663.3,2.72972639]
[1753214276473,1.0085,3664.3,3663.4,3.04774524]
[1753214276713,1.0085,3664.3,3662.6,1.2307]
[1753214276904,0.55,3664.0,3662.8,5.73015179]
[1753214277076,3.27930268,3664.0,3663.3,2.72973035]
[1753214277278,0.4585,3663.9,3663.3,2.72973035]
[1753214277503,3.18784602,3663.9,3663.3,2.72973035]
[1753214277903,2.7294148,3663.8,3662.8,3.0]
[1753214278101,1.2114,3663.7,3662.6,3.075]
[1753214278310,1.2114,3663.7,3663.2,2.72980447]
[1753214278515,0.4585,3663.6,3662.6,3.075]
[1753214278689,0.7529,3663.7,3663.6,2.72955562]
[1753214278891,1.2114,3664.1,3663.9,2.72931335]
[1753214279077,0.4585,3664.0,3663.6,2.72952276]
[1753214279287,0.0355,3663.7,3663.6,2.72952276]
[1753214280610,0.7735,3664.6,3664.5,2.72888525]
[1753214280779,1e-08,3664.9,3663.9,3.56239256]
[1753214280982,1e-08,3664.9,3664.8,2.72866186]
[1753214281425,1e-08,3664.9,3664.7,2.72870544]
[1753214281596,1.2431,3664.8,3663.6,3.62092159]
[1753214281816,0.55,3664.7,3663.7,0.43970216]
[1753214282023,0.55,3664.2,3662.4,0.7829]
[1753214282184,0.65168,3664.1,3663.4,2.72968039]
[1753214282497,0.65168,3664.1,3662.4,0.7829]
[1753214282498,2.729361,3663.9,3663.2,2.72978861]
[1753214282693,0.4585,3663.8,3662.6,0.027303]
[1753214283019,0.4585,3663.8,3663.3,2.72977916]
[1753214283224,0.4585,3663.7,3662.7,2.73022633]
[1753214283532,0.8312,3664.0,3662.7,0.02730226]
[1753214283825,0.8312,3664.0,3662.9,2.73007726]
[1753214284783,0.4585,3663.9,3662.8,2.73015179]
[1753214285016,0.4585,3663.9,3663.5,2.72956252]
[1753214285216,0.4585,3663.8,3663.0,2.73000273]
[1753214285417,0.4585,3663.8,3663.7,2.72948112]
[1753214286235,0.8312,3664.0,3663.9,2.72933213]
[1753214286538,3.074,3664.2,3662.8,3.14438976]
[1753214286539,0.7821,3664.4,3663.4,0.7575]
[1753214286741,1.2406,3664.4,3664.0,2.72925501]
[1753214286902,0.4585,3664.3,3664.0,2.72925501]
[1753214287250,3.18754546,3664.3,3663.6,0.001]
[1753214287419,0.70436455,3664.2,3663.8,2.72934918]
[1753214287944,0.4585,3664.1,3663.8,2.72934918]
[1753214288113,0.4585,3664.1,3663.9,2.72931779]
[1753214288317,0.0386,3664.0,3663.9,2.72931779]
[1753214288513,0.0386,3664.0,3663.8,2.72939279]
[1753214288733,0.4971,3664.0,3663.8,2.72939279]
[1753214289213,0.4585,3663.9,3663.8,2.72939279]
[1753214289621,0.0386,3664.0,3663.9,2.72933213]
[1753214290031,0.4971,3664.0,3663.9,2.72933213]
[1753214290232,0.85421,3664.0,3663.6,0.001]
[1753214290436,3.27948112,3663.7,3663.6,0.001]
[1753214290708,3.8017,3663.7,3663.6,0.001]
[1753214290928,7.3342,3663.7,3663.6,0.001]
[1753214291241,4.3342,3663.7,3663.6,0.001]
[1753214292651,0.8017,3663.7,3663.6,2.73055562]
[1753214292813,0.0386,3664.0,3663.9,2.72933213]
[1753214293230,0.0386,3664.0,3663.9,3.20732545]
[1753214294756,0.0386,3664.0,3663.9,2.75662545]
[1753214294944,0.0386,3664.0,3663.9,2.72933213]
[1753214295114,0.0386,3664.0,3663.9,3.71230554]
[1753214295320,0.0386,3664.0,3663.9,3.73959886]
[1753214295750,0.0386,3664.0,3663.9,3.71230554]
[1753214295922,0.0386,3664.0,3663.9,2.72933213]
[1753214300119,0.82,3663.9,3663.6,0.001]
[1753214300964,3.27948112,3663.7,3663.6,0.001]
[1753214301258,1.23181722,3663.7,3663.6,0.001]
[1753214301553,6.81058112,3663.7,3663.6,0.001]
[1753214301919,0.4591,3663.7,3663.6,0.001]
[1753214302129,3.5311,3663.7,3663.6,0.001]
[1753214304026,0.4591,3663.7,3663.6,0.001]
[1753214304223,3.5311,3663.7,3663.6,0.001]
[1753214304761,0.4591,3663.7,3663.6,0.001]
[1753214304968,0.7707,3663.8,3663.6,0.001]
[1753214305151,0.7707,3663.8,3663.6,2.73050864]
[1753214305152,3.072,3663.7,3663.6,2.73050864]
[1753214306241,10.92458112,3663.7,3663.6,0.001]
[1753214307235,5.1231,3663.7,3663.6,0.001]
[1753214307432,4.8879,3663.7,3663.6,0.001]
[1753214307634,0.65890619,3664.5,3663.7,2.72948112]
[1753214307837,3.072,3664.2,3663.6,2.73053835]
[1753214308067,1.2659,3664.1,3663.6,0.001]
[1753214308275,0.43379,3664.0,3663.6,0.001]
[1753214308436,5.80128129,3664.0,3663.6,0.001]
[1753214308771,0.4591,3663.9,3663.6,0.001]
[1753214308972,0.55,3663.8,3663.6,0.001]
[1753214309279,3.072,3663.7,3663.6,0.001]
[1753214309867,0.4591,3663.8,3663.6,0.001]
[1753214310035,3.072,3663.7,3663.6,2.73055562]
[1753214310237,0.8088,3664.1,3663.6,0.001]
[1753214310469,0.0386,3663.7,3663.6,2.73054031]
[1753214310679,0.0386,3663.7,3663.6,3.35572818]
[1753214310885,0.0386,3663.7,3663.6,3.82852818]
[1753214311762,0.0386,3663.7,3663.6,3.35572818]
[1753214312338,0.0386,3663.7,3663.6,2.73054031]
[1753214312866,0.4977,3663.7,3663.6,0.001]
[1753214313066,0.0386,3663.7,3663.6,2.73055562]
[1753214313455,0.0386,3663.7,3663.6,3.52325562]
[1753214313657,0.0386,3663.7,3663.6,4.14855065]
[1753214313866,0.0386,3663.7,3663.6,3.52325562]
[1753214315376,0.0386,3663.7,3663.6,7.02335117]
[1753214315675,0.0386,3663.7,3663.6,6.99605562]
[1753214316176,0.0386,3663.7,3663.6,10.06705562]
[1753214316340,0.002,3664.1,3664.0,2.72925764]
[1753214316543,0.002,3664.7,3664.6,2.72881078]
[1753214316970,0.002,3664.7,3664.6,2.75609888]
[1753214317283,0.002,3664.7,3664.6,7.11719888]
[1753214317488,1e-08,3664.8,3664.7,5.72873632]
[1753214317637,1e-08,3664.8,3664.7,6.20153632]
[1753214317840,1e-08,3664.8,3664.7,8.05629074]
[1753214318056,1e-08,3664.8,3664.7,8.83219074]
[1753214322483,1e-08,3664.8,3664.7,8.35939074]
[1753214323197,1e-08,3664.8,3664.7,5.35939074]
[1753214323374,0.49830001,3664.8,3664.7,2.72873632]
[1753214323681,0.49830001,3664.8,3664.2,3.069]
[1753214324041,0.49830001,3664.8,3664.4,2.72894692]
[1753214324244,0.90259459,3664.8,3664.2,2.72905012]
[1753214324445,0.44349459,3664.8,3664.2,2.72909129]
[1753214324639,0.4591,3664.7,3664.2,2.72909129]
[1753214324881,0.4591,3664.6,3664.0,2.72925764]
[1753214325083,0.4591,3664.6,3664.1,2.72918315]
[1753214325392,0.4591,3664.6,3664.5,2.72888525]
[1753214325683,0.4591,3664.6,3664.3,2.72896088]
[1753214325885,0.4591,3664.5,3664.3,2.72896088]
[1753214326086,0.03920001,3664.8,3663.9,3.069]
[1753214326384,0.03920001,3664.8,3664.6,2.72880392]
[1753214326684,0.03920001,3664.8,3663.9,5.7292801]
[1753214326900,0.03920001,3664.8,3664.6,2.72876411]
[1753214327059,0.03920001,3664.8,3664.7,2.72873632]
[1753214327258,0.03920001,3664.8,3664.6,2.72878202]
[1753214327444,0.03920001,3664.8,3664.7,2.72873632]
[1753214327982,0.03920001,3664.8,3664.5,2.72882398]
[1753214328547,0.03920001,3664.8,3664.2,3.8889]
[1753214328749,0.449,3664.7,3664.2,3.069]
[1753214329051,0.449,3664.6,3664.5,2.72887696]
[1753214329580,0.03920001,3664.8,3664.6,2.72874195]
[1753214329882,0.03920001,3664.8,3664.7,2.72873632]
[1753214330711,1e-08,3664.9,3664.8,2.72866186]
[1753214331020,1e-08,3664.9,3664.8,3.20086186]
[1753214331228,1e-08,3664.9,3664.8,2.72866186]
[1753214331521,1e-08,3664.9,3664.8,5.79766186]
[1753214331723,1e-08,3664.9,3664.8,5.9448266]
[1753214331879,1e-08,3664.9,3664.8,5.79766186]
[1753214332225,1e-08,3664.9,3664.8,5.94482751]
[1753214332520,1e-08,3664.9,3664.8,3.63848627]
[1753214332814,1e-08,3664.9,3664.8,3.66576337]
[1753214333130,1e-08,3664.9,3664.8,4.11067676]
[1753214333431,1e-08,3664.9,3664.8,2.875818]
[1753214334283,1e-08,3664.9,3664.8,2.90310461]
[1753214334724,1e-08,3664.9,3664.8,2.875818]
[1753214335017,1e-08,3664.9,3664.8,5.943818]
[1753214338136,1e-08,3664.9,3664.8,2.875818]
[1753214338359,1e-08,3664.9,3664.8,0.14715614]
[1753214338502,1.22800001,3664.9,3664.8,0.14715614]
[1753214339214,0.77900001,3664.9,3664.8,0.14715614]
[1753214339416,0.77900001,3664.9,3664.6,0.001]
[1753214339625,0.449,3664.8,3664.6,0.001]
[1753214340007,0.449,3664.7,3664.6,2.72977733]
[1753214340238,0.449,3664.7,3664.6,0.001]
[1753214342250,0.999,3664.7,3664.6,0.001]
[1753214342546,4.17840119,3664.7,3664.6,0.001]
[1753214343204,0.449,3664.7,3664.6,0.001]
[1753214343502,6.72773632,3664.7,3664.6,0.001]
[1753214343727,7.48433632,3664.7,3664.6,0.001]
[1753214343948,10.55133632,3664.7,3664.6,0.001]
[1753214344239,2.72933213,3663.9,3663.8,0.001]
[1753214344479,10.68278608,3663.9,3663.8,0.001]
[1753214344744,6.27985367,3663.2,3663.1,0.001]
[1753214344945,4.07097542,3662.5,3662.4,0.001]
[1753214345154,3.52157195,3661.7,3661.6,0.001]
[1753214345299,0.55,3661.6,3661.4,0.001]
[1753214345499,0.55,3661.6,3660.0,15.0]
[1753214345500,2.73199717,3660.4,3660.0,15.0]
[1753214345774,1.3406,3661.4,3660.0,15.0]
[1753214345775,0.449,3660.3,3660.0,15.0]
[1753214345943,0.7906,3660.3,3660.0,15.0]
[1753214346156,0.449,3660.2,3660.0,15.0]
[1753214346503,0.7906,3660.3,3660.0,15.0]
[1753214346504,0.449,3660.1,3660.0,15.0]
[1753214346941,1.42966,3660.1,3660.0,15.0]
[1753214347145,7.16182578,3660.1,3660.0,15.0]
[1753214347439,7.95242578,3660.1,3660.0,15.0]
[1753214347852,5.22026,3660.1,3660.0,15.0]
[1753214348142,8.28826,3660.1,3660.0,15.0]
[1753214348348,5.22026,3660.1,3660.0,15.0]
[1753214348548,11.02042578,3660.1,3660.0,15.0]
[1753214348706,5.22026,3660.1,3660.0,15.0]
[1753214349042,5.22026,3660.1,3660.0,17.73224043]
[1753214349043,3.8596,3660.1,3660.0,17.73224043]
[1753214349248,0.449,3660.6,3660.0,15.0]
[1753214349249,3.518,3660.6,3660.0,15.0]
[1753214349403,0.449,3660.1,3660.0,15.0]
[1753214349650,1.8237,3660.1,3660.0,15.0]
[1753214349895,5.07507,3660.1,3660.0,15.0]
[1753214350456,17.94855534,3660.1,3660.0,15.0]
[1753214350976,15.21638956,3660.1,3660.0,15.0]
[1753214351504,0.8247,3660.1,3660.0,17.73224043]
[1753214351657,3.8927,3660.1,3660.0,17.73224043]
[1753214351853,1.39374544,3660.6,3660.4,2.73191362]
[1753214352080,3.518,3660.5,3660.2,2.73202132]
[1753214352266,0.14262413,3661.1,3660.2,2.07373962]
[1753214352476,0.14262413,3661.1,3661.0,2.73149412]
[1753214352912,1.00557915,3662.7,3661.8,2.73084384]
[1753214353119,0.14545791,3662.6,3662.1,2.73061425]
[1753214353410,0.14545791,3662.6,3662.2,2.7305955]
[1753214353564,0.449,3662.5,3662.2,2.7305955]
[1753214353764,0.8021,3663.2,3662.1,3.069]
[1753214354082,3.53195655,3663.2,3662.5,2.73035799]
[1753214354395,0.449,3663.1,3661.4,0.34861195]
[1753214354580,3.069,3663.0,3661.5,3.09631121]
[1753214354906,0.449,3663.1,3661.6,3.069]
[1753214355395,9.87063176,3664.0,3663.0,2.72998345]
[1753214355396,3.069,3663.5,3663.0,2.72998345]
[1753214355597,0.3518,3663.5,3663.1,2.72992414]
[1753214355894,0.7816,3664.3,3663.8,2.72939852]
[1753214356094,0.7816,3664.3,3663.3,2.72977916]
[1753214356283,0.449,3664.7,3663.4,0.02729704]
[1753214356479,0.55,3664.6,3663.2,0.4722]
[1753214356668,0.43251,3664.6,3663.1,3.069]
[1753214356862,0.43251,3664.6,3664.3,2.72902346]
[1753214357074,0.43251,3664.6,3663.6,3.51505562]
[1753214357075,0.43251,3664.6,3664.5,2.72888525]
[1753214357277,0.002,3664.8,3664.7,2.72873632]
[1753214357603,0.002,3664.8,3664.7,3.54152368]
[1753214357919,0.002,3665.5,3665.4,5.7282152]
[1753214358287,0.002,3665.5,3665.4,3.068]
[1753214358515,0.002,3665.5,3665.4,5.7962152]
[1753214358718,0.002,3665.5,3665.0,0.4438]
[1753214358877,0.002,3665.5,3664.7,0.7855]
[1753214359074,0.002,3665.5,3664.8,3.0]
[1753214359274,0.002,3665.5,3664.1,4.587]
[1753214359275,1e-08,3666.4,3665.5,0.7855]
[1753214359536,1e-08,3666.4,3665.7,2.72792446]
[1753214359679,1e-08,3666.4,3665.5,0.7855]
[1753214359879,7.14131956,3666.1,3663.5,0.7855]
[1753214360085,1.2519,3666.3,3663.5,0.7855]
[1753214360086,4.28612196,3666.0,3663.8,0.4438]
[1753214360322,0.9968,3665.9,3664.3,2.72900153]
[1753214360523,2.7286349,3664.9,3664.4,3.147]
[1753214360708,2.72828768,3665.4,3664.4,3.147]
[1753214360886,2.72828768,3665.4,3663.9,0.02729332]
[1753214360887,3.55,3665.7,3664.5,3.146]
[1753214361089,2.7285292,3665.0,3664.5,3.146]
[1753214361306,0.71965292,3664.9,3663.5,0.7855]
[1753214361619,3.54623942,3665.1,3663.7,3.0]
[1753214361824,0.55,3665.5,3664.0,2.72922706]
[1753214361994,2.72859396,3664.9,3663.8,2.72933395]
[1753214362182,0.4468,3665.1,3663.9,3.147]
[1753214362383,0.55,3665.6,3664.0,3.0]
[1753214362587,0.55,3665.6,3664.3,2.72903419]
[1753214362805,2.72828679,3665.4,3664.3,2.72903419]
[1753214363326,3.17501644,3665.4,3664.2,2.75633374]
[1753214363627,0.37250164,3665.3,3664.3,3.147]
[1753214363824,2.72852884,3665.0,3663.9,3.0]
[1753214364122,2.72866431,3664.8,3664.4,3.146]
[1753214364291,0.4468,3665.2,3664.4,3.146]
[1753214364497,3.17516591,3665.2,3664.4,3.146]
[1753214364698,2.72855672,3665.0,3664.4,3.146]
[1753214364923,2.72846181,3665.1,3664.5,0.02728885]
[1753214365118,2.72848529,3665.1,3664.4,3.146]
[1753214365422,2.72848529,3665.1,3664.4,5.87495094]
[1753214365719,2.72838395,3665.2,3664.4,5.87495094]
[1753214365882,2.72838395,3665.2,3664.5,2.72887529]
[1753214366078,2.7282209,3665.4,3664.4,5.87495145]
[1753214366284,0.8178,3665.7,3664.5,3.143]
[1753214366484,0.7904,3666.3,3664.7,0.7616]
[1753214366798,2.72782795,3666.0,3665.2,2.72829601]
[1753214366987,2.72782795,3666.0,3664.8,0.02728661]
[1753214366988,0.7904,3666.3,3665.4,2.7281941]
[1753214367328,1e-08,3666.4,3665.4,0.30282985]
[1753214367628,1e-08,3666.4,3665.5,3.141]
[1753214367790,1e-08,3666.4,3666.1,2.72769018]
[1753214367988,1e-08,3666.4,3665.9,2.72782486]
[1753214368228,1e-08,3666.4,3666.1,2.72764195]
[1753214368448,1e-08,3666.4,3666.2,3.147]
[1753214368751,1e-08,3666.4,3666.3,2.75482093]
[1753214368952,1e-08,3666.4,3666.3,3.17134548]
[1753214369247,1e-08,3666.4,3666.3,3.19862093]
[1753214369429,1e-08,3666.4,3666.3,6.34362093]
[1753214369744,1e-08,3666.4,3666.3,9.31634548]
[1753214369947,1e-08,3666.4,3666.3,8.19114562]
[1753214370310,1.2011,3669.0,3667.7,2.72650434]
[1753214370511,0.7543,3669.0,3667.7,5.89676938]
[1753214370716,1e-08,3667.8,3667.7,9.31330434]
[1753214371031,1e-08,3667.8,3667.7,11.31296683]
[1753214371547,1e-08,3667.8,3667.7,15.89696683]
[1753214371732,1e-08,3667.8,3667.7,12.75396683]
[1753214372154,1e-08,3667.8,3667.7,15.50116683]
[1753214372320,1e-08,3667.8,3667.5,0.8154]
[1753214372525,1e-08,3667.8,3666.7,0.8272]
[1753214372845,1e-08,3667.8,3666.9,3.0]
[1753214373050,1e-08,3667.8,3667.0,3.22127024]
[1753214373252,1e-08,3667.8,3667.7,2.72650434]
[1753214373550,1e-08,3667.8,3667.7,6.19315477]
[1753214373737,1e-08,3667.8,3667.7,6.63695477]
[1753214373940,1e-08,3667.8,3667.7,9.63695477]
[1753214374325,1e-08,3667.8,3667.7,6.44295477]
[1753214374527,1e-08,3667.8,3667.7,5.99915477]
[1753214374734,1e-08,3667.8,3667.7,9.19515477]
[1753214374927,1e-08,3667.8,3667.7,9.63895477]
[1753214375851,1e-08,3667.8,3667.7,6.44295477]
[1753214376155,1e-08,3667.8,3667.7,5.99915477]
[1753214376357,1e-08,3667.8,3667.7,9.19315477]
[1753214377050,1e-08,3667.8,3667.7,9.63695477]
[1753214377252,1e-08,3667.8,3667.7,9.64295477]
[1753214377750,1e-08,3667.8,3667.7,6.44295477]
[1753214377911,1e-08,3667.8,3667.7,9.64095477]
[1753214378111,1e-08,3667.8,3667.7,10.45205477]
[1753214378853,1e-08,3667.8,3667.7,7.80405477]
[1753214379027,1e-08,3667.8,3667.7,10.45005477]
[1753214379460,1e-08,3667.8,3667.7,7.25405477]
[1753214379613,1e-08,3667.8,3667.7,15.03005477]
[1753214380060,1e-08,3667.8,3667.7,11.83405477]
[1753214380210,1e-08,3667.8,3667.7,15.02905477]
[1753214380615,1e-08,3667.8,3667.7,15.02705477]
[1753214380842,1e-08,3667.8,3667.7,15.0581298]
[1753214381232,1e-08,3668.6,3668.5,2.72590977]
[1753214381424,1e-08,3668.6,3668.5,16.06222933]
[1753214381648,1e-08,3668.6,3668.5,16.53709759]
[1753214381822,1e-08,3668.6,3668.5,17.34309759]
[1753214382031,0.002,3669.0,3668.5,17.34309759]
[1753214382032,1e-08,3669.0,3668.9,5.72561258]
[1753214382227,1e-08,3669.0,3668.9,9.76875738]
[1753214382529,1e-08,3669.0,3668.9,9.79982225]
[1753214382853,1e-08,3669.0,3668.9,10.24362225]
[1753214383317,1e-08,3669.0,3668.9,6.79782225]
[1753214383714,0.002,3669.8,3668.9,6.79782225]
[1753214383715,1e-08,3669.7,3668.9,10.99902225]
[1753214383914,1e-08,3669.8,3669.7,5.72501839]
[1753214384119,1e-08,3669.8,3669.7,8.92401839]
[1753214384351,1e-08,3669.8,3669.7,8.95607649]
[1753214384673,1e-08,3669.8,3669.0,1.09990222]
[1753214384842,1e-08,3669.8,3669.7,2.72501839]
[1753214385019,1e-08,3669.8,3669.7,5.92401839]
[1753214385958,1e-08,3669.8,3669.7,9.36781839]
[1753214386263,1e-08,3669.8,3669.7,17.26693795]
[1753214386417,1e-08,3669.8,3669.7,14.06793795]
[1753214386616,1e-08,3669.8,3669.7,18.9432426]
[1753214386820,1e-08,3670.5,3670.4,6.55479869]
[1753214387139,0.7761,3672.7,3671.0,3.0]
[1753214387347,0.7761,3672.7,3672.2,2.72315935]
[1753214387530,0.7761,3672.7,3671.1,11.09215935]
[1753214387531,0.7761,3672.7,3672.3,2.75332191]
[1753214387741,0.7761,3672.7,3672.6,2.72286663]
[1753214387933,1.226,3673.3,3672.7,2.72276057]
[1753214388122,1.226,3673.3,3672.6,3.195]
[1753214388123,0.4499,3673.8,3672.6,3.195]
[1753214388321,0.7761,3673.9,3672.9,2.72264423]
[1753214388623,0.4499,3674.3,3674.1,2.72173163]
[1753214388818,0.7991,3674.4,3674.2,3.195]
[1753214389168,1.249,3675.0,3674.2,2.57550646]
[1753214389321,1.249,3675.0,3673.6,7.14131956]
[1753214389322,0.14958077,3674.9,3673.9,2.72190315]
[1753214389656,0.14958077,3674.9,3673.8,5.3705]
[1753214389657,0.8157,3675.6,3674.2,7.14131956]
[1753214389968,3.4210302,3677.8,3674.2,7.14131956]
[1753214389969,0.4499,3676.2,3674.5,0.7935]
[1753214390133,3.0,3676.1,3674.6,0.02721384]
[1753214390315,0.34499,3676.0,3674.8,9.86252088]
[1753214390519,3.53554223,3676.7,3675.5,2.72065522]
[1753214390756,0.4499,3676.6,3675.6,3.199]
[1753214391006,0.4499,3676.6,3675.4,0.02720792]
[1753214391280,0.4499,3676.6,3675.5,3.198]
[1753214391582,0.4499,3676.6,3675.5,5.91871601]
[1753214391887,0.4499,3676.6,3674.1,4.575]
[1753214391888,0.8157,3676.3,3674.1,4.575]
[1753214392040,0.55,3676.1,3674.2,3.198]
[1753214392380,1.3657,3675.9,3674.3,2.72157262]
[1753214392681,0.4499,3675.8,3674.4,0.02721532]
[1753214392881,3.55,3675.7,3674.4,0.02721532]
[1753214393040,0.55,3674.6,3674.5,3.202]
[1753214393888,0.55,3673.8,3671.6,0.7709]
[1753214394087,0.8293,3673.9,3672.1,3.204]
[1753214394088,0.55,3673.6,3672.1,3.204]
[1753214394385,0.55,3672.4,3671.4,2.72375205]
[1753214394707,3.27323738,3672.1,3671.6,3.213]
[1753214394880,0.55,3672.1,3671.6,3.213]
[1753214395087,3.72313738,3672.1,3671.6,3.213]
[1753214395393,0.9999,3672.1,3671.7,3.213]
[1753214395594,1.18282,3672.1,3671.7,3.213]
[1753214395877,0.63282,3672.1,3671.7,3.213]
[1753214396084,0.4499,3672.1,3671.4,2.72375393]
[1753214396382,0.4499,3672.1,3670.9,0.02724127]
[1753214396692,0.55,3671.9,3671.0,3.21]
[1753214396977,3.27336058,3672.0,3671.1,2.72390629]
[1753214397140,3.27336058,3672.0,3671.0,3.21]
[1753214397141,0.55,3671.6,3669.8,0.8022]
[1753214397348,0.55,3671.4,3670.0,2.7247316]
[1753214397560,0.55,3671.4,3670.6,2.7242816]
[1753214397762,0.55,3671.4,3669.8,2.72487026]
[1753214397986,0.55,3671.2,3670.5,2.72438871]
[1753214398278,0.55,3671.2,3670.6,3.21]
[1753214398494,1.2582,3671.3,3670.6,3.21]
[1753214398652,0.55,3671.2,3670.0,0.02724795]
[1753214398859,0.55,3671.2,3669.4,4.574]
[1753214399060,0.55,3671.2,3670.6,2.72435024]
[1753214399364,0.4499,3671.7,3671.4,2.72373454]
[1753214399558,0.4499,3671.7,3671.1,3.209]
[1753214399759,0.55,3671.1,3669.9,0.02724869]
[1753214400102,0.55,3670.9,3670.6,0.001]
[1753214400406,3.27427602,3670.7,3670.6,0.001]
[1753214400568,4.0016776,3670.7,3670.6,0.001]
[1753214400903,4.4515776,3670.7,3670.6,0.001]
[1753214401197,6.72417602,3670.7,3670.6,0.001]
[1753214401366,3.55,3670.7,3670.6,0.001]
[1753214401556,3.9999,3670.7,3670.6,0.001]
[1753214401756,0.9999,3670.7,3670.6,0.001]
[1753214401993,0.55,3671.2,3670.6,3.206]
[1753214402194,0.55,3670.7,3670.6,0.001]
[1753214402401,0.55,3671.0,3670.6,0.001]
[1753214402808,0.9999,3670.7,3670.6,0.001]
[1753214403307,0.55,3670.7,3670.6,2.72535024]
[1753214403461,0.9999,3670.7,3670.6,0.001]
[1753214403656,3.17417602,3670.7,3670.6,3.214]
[1753214403858,3.17417602,3670.7,3670.6,0.001]
[1753214403859,7.04159362,3670.7,3670.6,0.001]
[1753214404297,4.3173176,3670.7,3670.6,0.001]
[1753214404479,3.0,3670.7,3670.6,0.001]
[1753214404682,6.17937602,3670.7,3670.6,0.001]
[1753214404885,7.54097602,3670.7,3670.6,0.001]
[1753214405774,7.78532141,3670.7,3670.6,0.001]
[1753214405997,7.54907602,3670.7,3670.6,0.001]
[1753214406199,8.57640145,3670.7,3670.6,0.001]
[1753214406525,8.57640145,3670.7,3670.6,1e-08]
[1753214407792,8.82094746,3670.7,3670.6,1e-08]
[1753214408332,8.57640145,3670.7,3670.6,1e-08]
[1753214411230,8.02640145,3670.7,3670.6,1e-08]
[1753214411389,8.57640145,3670.7,3670.6,1e-08]
[1753214412918,8.02640145,3670.7,3670.6,1e-08]
[1753214413247,8.57640145,3670.7,3670.6,1e-08]
[1753214413402,8.57640145,3670.7,3669.8,1e-08]
[1753214413622,7.05606988,3669.9,3669.8,1e-08]
[1753214414002,7.50596988,3669.9,3669.8,1e-08]
[1753214416743,2.72478138,3670.1,3669.8,1e-08]
[1753214416744,2.72473459,3670.1,3669.8,1e-08]
[1753214417052,2.72486988,3669.9,3669.8,1e-08]
[1753214417217,0.4499,3670.4,3669.8,1e-08]
[1753214417422,0.7952,3670.5,3669.8,1e-08]
[1753214417423,3.0,3669.9,3669.8,1e-08]
[1753214418016,6.74516988,3669.9,3669.8,1e-08]
[1753214421614,3.74516988,3669.9,3669.8,1e-08]
[1753214421927,12.07626988,3669.9,3669.8,1e-08]
[1753214422129,12.32326359,3669.9,3669.8,1e-08]
[1753214422325,13.18118457,3669.9,3669.8,1e-08]
[1753214422712,13.18018457,3669.9,3669.8,1e-08]
[1753214423745,13.17518457,3669.9,3669.8,1e-08]
[1753214424806,5.97216779,3669.9,3669.8,1e-08]
[1753214425205,3.24768964,3669.9,3669.8,1e-08]
[1753214425449,0.24768964,3669.9,3669.8,1e-08]
[1753214425654,3.52255952,3669.9,3669.8,1e-08]